fUSD/lending_fUSD_20240719
["ID","MTS","AMOUNT","RATE_DAILY","PERIOD"]
[332649995,1721405458601,-500.0,0.00033561,14]
[332649996,1721405458878,-500.0,0.00033561,14]
[332649997,1721405458904,-500.0,0.00033561,14]
[332649998,1721405458914,-500.0,0.00033561,14]
[332649999,1721405458923,-500.0,0.00033561,14]
[332650000,1721405458933,-500.0,0.00033561,14]
[332650001,1721405458943,-928.26,0.00033561,14]
[332650002,1721405458953,-781.23,0.00033561,14]
[332650003,1721405458963,-500.0,0.00033561,14]
[332650004,1721405458984,-860.86,0.00033561,14]
[332650005,1721405458995,-567.5671646,0.00033561,14]
[332650006,1721405459007,-756.27,0.00033561,14]
[332650007,1721405459018,-500.0,0.00033561,14]
[332650008,1721405459030,-840.95,0.00033561,14]
[332650009,1721405459040,-579.58,0.00033561,14]
[332650010,1721405459052,-3829.75,0.00033561,14]
[332650011,1721405459063,-500.0,0.00033561,14]
[332650012,1721405459074,-992.53,0.00033561,14]
[332650013,1721405459084,-500.0,0.00033561,14]
[332650014,1721405459095,-512.29,0.00033561,14]
[332650015,1721405459105,-500.0,0.00033561,14]
[332650016,1721405459115,-500.0,0.00033561,14]
[332650017,1721405459126,-500.0,0.00033561,14]
[332650018,1721405459136,-1957.81,0.00033561,14]
[332650019,1721405459147,-500.0,0.00033561,14]
[332650020,1721405459157,-1687.45,0.00033561,14]
[332650021,1721405459167,-500.0,0.00033561,14]
[332650022,1721405459177,-554.18,0.00033561,14]
[332650023,1721405459187,-505.09439247,0.00033561,14]
[332650024,1721405459198,-2139.51,0.00033561,14]
[332650025,1721405459208,-500.0,0.00033561,14]
[332650026,1721405459220,-3678.46,0.00033561,14]
[332650027,1721405459230,-500.0,0.00033561,14]
[332650028,1721405459242,-1102.24,0.00033561,14]
[332650029,1721405459256,-500.0,0.00033561,14]
[332650030,1721405459266,-500.0,0.00033561,14]
[332650031,1721405459277,-500.0,0.00033561,14]
[332650032,1721405459289,-2659.19,0.00033561,14]
[332650033,1721405459299,-500.0,0.00033561,14]
[332650034,1721405459309,-500.0,0.00033561,14]
[332650035,1721405459321,-500.0,0.00033561,14]
[332650036,1721405459331,-500.0,0.00033561,14]
[332650037,1721405459341,-748.36,0.00033561,14]
[332650038,1721405459351,-500.0,0.00033561,14]
[332650039,1721405459361,-500.0,0.00033561,14]
[332650040,1721405459373,-500.0,0.00033561,14]
[332650041,1721405459383,-500.0,0.00033561,14]
[332650042,1721405459394,-1342.76,0.00033561,14]
[332650043,1721405459404,-500.0,0.00033561,14]
[332650044,1721405459415,-1446.86,0.00033561,14]
[332650045,1721405459425,-425.88426634,0.00033561,14]
[332650046,1721405459435,-2318.73,0.00033561,14]
[332650047,1721405459445,-500.0,0.00033561,14]
[332650048,1721405459455,-500.0,0.00033561,14]
[332650049,1721405459466,-500.0,0.00033561,14]
[332650050,1721405459476,-500.0,0.00033561,14]
[332650051,1721405459486,-968.02,0.00033561,14]
[332650052,1721405459496,-500.0,0.00033561,14]
[332650053,1721405459507,-500.0,0.00033561,14]
[332650054,1721405459517,-500.0,0.00033561,14]
[332650055,1721405459528,-1215.42,0.00033561,14]
[332650056,1721405459538,-500.0,0.00033561,14]
[332650057,1721405459548,-1189.06,0.00033561,14]
[332650058,1721405459558,-2711.43,0.00033561,14]
[332650059,1721405459568,-500.0,0.00033561,14]
[332650060,1721405459578,-500.0,0.00033561,14]
[332650061,1721405459588,-258.24983503,0.00033561,14]
[332650062,1721405459597,-500.0,0.00033561,14]
[332650063,1721405459607,-717.63,0.00033561,14]
[332650064,1721405459618,-591.06,0.00033561,14]
[332650065,1721405459628,-952.61,0.00033561,14]
[332650066,1721405459638,-507.3775772,0.00033561,14]
[332650067,1721405459649,-2016.29,0.00033561,14]
[332650068,1721405459658,-500.0,0.00033561,14]
[332650069,1721405459669,-500.0,0.00033561,14]
[332650070,1721405459679,-500.0,0.00033561,14]
[332650071,1721405459689,-837.41,0.00033561,14]
[332650072,1721405459700,-517.97,0.00033561,14]
[332650073,1721405459710,-1189.37,0.00033561,14]
[332650074,1721405459720,-1315.92,0.00033561,14]
[332650075,1721405459730,-500.0,0.00033561,14]
[332650076,1721405459740,-787.01,0.00033561,14]
[332650077,1721405459749,-500.0,0.00033561,14]
[332650078,1721405459759,-853.41,0.00033561,14]
[332650079,1721405459769,-500.0,0.00033561,14]
[332650080,1721405459780,-618.57,0.00033561,14]
[332650081,1721405459790,-922.88,0.00033561,14]
[332650082,1721405459801,-500.0,0.00033561,14]
[332650083,1721405459811,-500.0,0.00033561,14]
[332650084,1721405459821,-1426.93,0.00033561,14]
[332650085,1721405459830,-500.0,0.00033561,14]
[332650086,1721405459840,-500.0,0.00033561,14]
[332650087,1721405459850,-2121.44,0.00033561,14]
[332650088,1721405459860,-1492.61,0.00033561,14]
[332650089,1721405459871,-2060.02,0.00033561,14]
[332650090,1721405459881,-500.0,0.00033561,14]
[332650091,1721405459891,-1270.35,0.00033561,14]
[332650092,1721405459901,-1782.26,0.00033561,14]
[332650093,1721405459912,-500.0,0.00033561,14]
[332650094,1721405459921,-3015.1,0.00033561,14]
[332650095,1721405459931,-500.0,0.00033561,14]
[332650096,1721405459941,-1363.34,0.00033561,14]
[332650097,1721405459951,-942.62,0.00033561,14]
[332650098,1721405459961,-1188.43,0.00033561,14]
[332650099,1721405459971,-500.0,0.00033561,14]
[332650100,1721405459981,-500.0,0.00033561,14]
[332650101,1721405459992,-500.0,0.00033561,14]
[332650102,1721405460002,-2312.04,0.00033561,14]
[332650103,1721405460012,-500.0,0.00033561,14]
[332650104,1721405460023,-768.63,0.00033561,14]
[332650105,1721405460033,-500.0,0.00033561,14]
[332650106,1721405460044,-500.0,0.00033561,14]
[332650107,1721405460054,-500.0,0.00033561,14]
[332650108,1721405460064,-569.91,0.00033561,14]
[332650109,1721405460074,-500.0,0.00033561,14]
[332650110,1721405460084,-500.0,0.00033561,14]
[332650111,1721405460094,-500.0,0.00033561,14]
[332650112,1721405460103,-500.0,0.00033561,14]
[332650113,1721405460113,-1535.53,0.00033561,14]
[332650114,1721405460125,-500.0,0.00033561,14]
[332650115,1721405460135,-1425.08,0.00033561,14]
[332650116,1721405460144,-785.93,0.00033561,14]
[332650117,1721405460154,-728.38,0.00033561,14]
[332650118,1721405460166,-3290.05,0.00033561,14]
[332650119,1721405460177,-500.0,0.00033561,14]
[332650120,1721405460187,-829.12,0.00033561,14]
[332650121,1721405460197,-500.0,0.00033561,14]
[332650122,1721405460207,-500.0,0.00033561,14]
[332650123,1721405460220,-500.0,0.00033561,14]
[332650124,1721405460230,-345.7541744,0.00033561,14]
[332650125,1721405460241,-918.05,0.00033561,14]
[332650126,1721405460255,-1257.94,0.00033561,14]
[332650127,1721405460265,-2459.5,0.00033561,14]
[332650128,1721405460274,-500.0,0.00033561,14]
[332650129,1721405460286,-500.0,0.00033561,14]
[332650130,1721405460297,-500.0,0.00033561,14]
[332650131,1721405460307,-798.81,0.00033561,14]
[332650132,1721405460317,-500.0,0.00033561,14]
[332650133,1721405460329,-500.0,0.00033561,14]
[332650134,1721405460339,-742.79,0.00033561,14]
[332650135,1721405460349,-500.0,0.00033561,14]
[332650136,1721405460359,-500.0,0.00033561,14]
[332650137,1721405460370,-1058.6,0.00033561,14]
[332650138,1721405460379,-559.06,0.00033561,14]
[332650139,1721405460390,-500.0,0.00033561,14]
[332650140,1721405460401,-500.0,0.00033561,14]
[332650141,1721405460411,-983.06,0.00033561,14]
[332650142,1721405460421,-500.0,0.00033561,14]
[332650143,1721405460431,-1339.89,0.00033561,14]
[332650144,1721405460442,-532.01,0.00033561,14]
[332650145,1721405460452,-501.72,0.00033561,14]
[332650146,1721405460463,-984.21,0.00033561,14]
[332650147,1721405460472,-708.71,0.00033561,14]
[332650148,1721405460482,-4177.7,0.00033561,14]
[332650149,1721405460491,-1412.03,0.00033561,14]
[332650150,1721405460502,-1608.43,0.00033561,14]
[332650151,1721405460512,-500.0,0.00033561,14]
[332650152,1721405460523,-500.0,0.00033561,14]
[332650153,1721405460533,-620.3,0.00033561,14]
[332650154,1721405460544,-667.6,0.00033561,14]
[332650155,1721405460553,-541.83,0.00033561,14]
[332650156,1721405460563,-1153.89,0.00033561,14]
[332650157,1721405460572,-500.0,0.00033561,14]
[332650158,1721405460582,-4221.72,0.00033561,14]
[332650159,1721405460592,-500.0,0.00033561,14]
[332650160,1721405460601,-500.0,0.00033561,14]
[332650161,1721405460611,-500.0,0.00033561,14]
[332650162,1721405460622,-398.4347964,0.00033561,14]
[332650163,1721405460631,-500.0,0.00033561,14]
[332650164,1721405460641,-990.52,0.00033561,14]
[332650165,1721405460651,-2019.59,0.00033561,14]
[332650166,1721405460660,-500.0,0.00033561,14]
[332650167,1721405460670,-1099.48,0.00033561,14]
[332650168,1721405460680,-500.0,0.00033561,14]
[332650169,1721405460690,-500.0,0.00033561,14]
[332650170,1721405460700,-500.0,0.00033561,14]
[332650171,1721405460710,-1257.09,0.00033561,14]
[332650172,1721405460720,-547.27,0.00033561,14]
[332650173,1721405460730,-500.0,0.00033561,14]
[332650174,1721405460740,-500.0,0.00033561,14]
[332650175,1721405460751,-2716.85,0.00033561,14]
[332650176,1721405460760,-500.0,0.00033561,14]
[332650177,1721405460771,-1599.77,0.00033561,14]
[332650178,1721405460781,-500.0,0.00033561,14]
[332650179,1721405460791,-719.64,0.00033561,14]
[332650180,1721405460803,-500.0,0.00033561,14]
[332650181,1721405460814,-857.73,0.00033561,14]
[332650182,1721405460824,-1986.48,0.00033561,14]
[332650183,1721405460834,-938.89,0.00033561,14]
[332650184,1721405460843,-500.0,0.00033561,14]
[332650185,1721405460853,-500.0,0.00033561,14]
[332650186,1721405460863,-1434.26,0.00033561,14]
[332650187,1721405460877,-500.0,0.00033561,14]
[332650188,1721405460887,-700.01,0.00033561,14]
[332650189,1721405460896,-500.0,0.00033561,14]
[332650190,1721405460906,-500.0,0.00033561,14]
[332650191,1721405460916,-1795.89,0.00033561,14]
[332650192,1721405460925,-739.71,0.00033561,14]
[332650193,1721405460935,-500.0,0.00033561,14]
[332650194,1721405460944,-500.0,0.00033561,14]
[332650195,1721405460954,-925.24,0.00033561,14]
[332650196,1721405460963,-2641.15,0.00033561,14]
[332650197,1721405460975,-856.94,0.00033561,14]
[332650198,1721405460987,-690.03,0.00033561,14]
[332650199,1721405460997,-500.0,0.00033561,14]
[332650200,1721405461006,-1022.79,0.00033561,14]
[332650201,1721405461016,-1025.98,0.00033561,14]
[332650202,1721405461026,-500.0,0.00033561,14]
[332650203,1721405461036,-712.85,0.00033561,14]
[332650204,1721405461045,-2660.99,0.00033561,14]
[332650205,1721405461055,-500.0,0.00033561,14]
[332650206,1721405461065,-644.42,0.00033561,14]
[332650207,1721405461075,-847.33,0.00033561,14]
[332650208,1721405461084,-2189.59,0.00033561,14]
[332650209,1721405461095,-500.0,0.00033561,14]
[332650210,1721405461104,-500.0,0.00033561,14]
[332650211,1721405461116,-748.24,0.00033561,14]
[332650212,1721405461130,-500.0,0.00033561,14]
[332650213,1721405461140,-500.0,0.00033561,14]
[332650214,1721405461149,-561.61483916,0.00033561,14]
[332650215,1721405461158,-500.0,0.00033561,14]
[332650216,1721405461169,-792.94,0.00033561,14]
[332650217,1721405461181,-650.68,0.00033561,14]
[332650218,1721405461190,-1669.97,0.00033561,14]
[332650219,1721405461200,-500.0,0.00033561,14]
[332650220,1721405461210,-500.0,0.00033561,14]
[332650221,1721405461221,-3200.91,0.00033561,14]
[332650222,1721405461232,-576.05,0.00033561,14]
[332650223,1721405461243,-1188.46,0.00033561,14]
[332650224,1721405461256,-524.24,0.00033561,14]
[332650225,1721405461265,-2101.33,0.00033561,14]
[332650226,1721405461277,-500.0,0.00033561,14]
[332650227,1721405461287,-3620.33,0.00033561,14]
[332650228,1721405461297,-724.14,0.00033561,14]
[332650229,1721405461307,-500.0,0.00033561,14]
[332650230,1721405461316,-500.0,0.00033561,14]
[332650231,1721405461327,-1606.46,0.00033561,14]
[332650232,1721405461336,-2849.42,0.00033561,14]
[332650233,1721405461346,-500.0,0.00033561,14]
[332650234,1721405461355,-500.0,0.00033561,14]
[332650235,1721405461364,-735.51,0.00033561,14]
[332650236,1721405461378,-500.0,0.00033561,14]
[332650237,1721405461468,-2219.39,0.00033561,14]
[332650238,1721405461478,-500.0,0.00033561,14]
[332650239,1721405461487,-1136.35,0.00033561,14]
[332650240,1721405461497,-3478.95,0.00033561,14]
[332650241,1721405461506,-1471.57,0.00033561,14]
[332650242,1721405461515,-500.0,0.00033561,14]
[332650243,1721405461525,-500.0,0.00033561,14]
[332650244,1721405461535,-536.55,0.00033561,14]
[332650245,1721405461544,-619.21,0.00033561,14]
[332650246,1721405461554,-3703.31,0.00033561,14]
[332650247,1721405461564,-1121.26,0.00033561,14]
[332650248,1721405461573,-552.02,0.00033561,14]
[332650249,1721405461583,-500.0,0.00033561,14]
[332650250,1721405461592,-500.0,0.00033561,14]
[332650251,1721405461601,-1380.4,0.00033561,14]
[332650252,1721405461611,-481.04989751,0.00033561,14]
[332650253,1721405461622,-500.0,0.00033561,14]
[332650254,1721405461631,-1550.95,0.00033561,14]
[332650255,1721405461641,-500.0,0.00033561,14]
[332650256,1721405461650,-500.0,0.00033561,14]
[332650257,1721405461659,-1560.94,0.00033561,14]
[332650258,1721405461668,-500.0,0.00033561,14]
[332650259,1721405461678,-522.62,0.00033561,14]
[332650260,1721405461687,-500.0,0.00033561,14]
[332650261,1721405461697,-533.79,0.00033561,14]
[332650262,1721405461706,-1049.36,0.00033561,14]
[332650263,1721405461715,-500.0,0.00033561,14]
[332650264,1721405461724,-500.0,0.00033561,14]
[332650265,1721405461733,-1990.65,0.00033561,14]
[332650266,1721405461743,-1111.98,0.00033561,14]
[332650267,1721405461752,-1730.51,0.00033561,14]
[332650268,1721405461761,-551.36,0.00033561,14]
[332650269,1721405461770,-4326.01,0.00033561,14]
[332650270,1721405461778,-588.86,0.00033561,14]
[332650271,1721405461788,-1572.72,0.00033561,14]
[332650272,1721405461797,-500.0,0.00033561,14]
[332650273,1721405461806,-500.0,0.00033561,14]
[332650274,1721405461815,-760.92,0.00033561,14]
[332650275,1721405461824,-1936.7,0.00033561,14]
[332650276,1721405461834,-500.0,0.00033561,14]
[332650277,1721405461843,-2053.54,0.00033561,14]
[332650278,1721405461852,-2486.51,0.00033561,14]
[332650279,1721405461862,-4288.83,0.00033561,14]
[332650280,1721405461875,-540.0799941,0.00033561,14]
[332650281,1721405461885,-500.0,0.00033561,14]
[332650282,1721405461894,-2391.82,0.00033561,14]
[332650283,1721405461904,-500.0,0.00033561,14]
[332650284,1721405461913,-996.04,0.00033561,14]
[332650285,1721405461922,-702.75,0.00033561,14]
[332650286,1721405461931,-500.0,0.00033561,14]
[332650287,1721405461941,-500.0,0.00033561,14]
[332650288,1721405461950,-500.0,0.00033561,14]
[332650289,1721405461960,-500.0,0.00033561,14]
[332650290,1721405461969,-1236.2,0.00033561,14]
[332650291,1721405461977,-1419.38,0.00033561,14]
[332650292,1721405461986,-500.0,0.00033561,14]
[332650293,1721405461996,-500.0,0.00033561,14]
[332650294,1721405462005,-591.05385238,0.00033561,14]
[332650295,1721405462014,-500.0,0.00033561,14]
[332650296,1721405462023,-2723.49,0.00033561,14]
[332650297,1721405462032,-500.0,0.00033561,14]
[332650298,1721405462041,-1245.55,0.00033561,14]
[332650299,1721405462050,-324.29735817,0.00033561,14]
[332650300,1721405462059,-1708.14,0.00033561,14]
[332650301,1721405462069,-500.0,0.00033561,14]
[332650302,1721405462078,-500.0,0.00033561,14]
[332650303,1721405462087,-500.0,0.00033561,14]
[332650304,1721405462096,-500.0,0.00033561,14]
[332650305,1721405462105,-2111.97,0.00033561,14]
[332650306,1721405462114,-500.0,0.00033561,14]
[332650307,1721405462126,-500.0,0.00033561,14]
[332650308,1721405462135,-2049.75,0.00033561,7]
[332650309,1721405462145,-501.18556468,0.00033561,14]
[332650310,1721405462154,-500.0,0.00033561,14]
[332650311,1721405462163,-3150.3,0.00033561,14]
[332650312,1721405462172,-1668.58,0.00033561,14]
[332650313,1721405462181,-583.78,0.00033561,14]
[332650314,1721405462191,-1289.1,0.00033561,14]
[332650315,1721405462200,-1118.18,0.00033561,14]
[332650316,1721405462210,-766.34,0.00033561,14]
[332650317,1721405462220,-913.26,0.00033561,14]
[332650318,1721405462229,-2072.22,0.00033561,14]
[332650319,1721405462243,-2467.95,0.00033561,14]
[332650320,1721405462252,-500.0,0.00033561,14]
[332650321,1721405462261,-2287.86,0.00033561,14]
[332650322,1721405462272,-500.0,0.00033561,14]
[332650323,1721405462282,-3489.46,0.00033561,14]
[332650324,1721405462292,-823.26,0.00033561,14]
[332650325,1721405462301,-500.0,0.00033561,14]
[332650326,1721405462311,-500.0,0.00033561,14]
[332650327,1721405462321,-500.0,0.00033561,14]
[332650328,1721405462331,-1578.39,0.00033561,14]
[332650329,1721405462341,-500.0,0.00033561,14]
[332650330,1721405462350,-509.53581248,0.00033561,14]
[332650331,1721405462360,-500.0,0.00033561,14]
[332650332,1721405462372,-500.0,0.00033561,14]
[332650333,1721405462382,-756.25,0.00033561,14]
[332650334,1721405462392,-500.0,0.00033561,14]
[332650335,1721405462403,-541.63,0.00033561,14]
[332650336,1721405462414,-500.0,0.00033561,14]
[332650337,1721405462424,-500.0,0.00033561,14]
[332650338,1721405462435,-500.0,0.00033561,14]
[332650339,1721405462445,-1412.59,0.00033561,14]
[332650340,1721405462455,-1067.11,0.00033561,14]
[332650341,1721405462465,-500.0,0.00033561,14]
[332650342,1721405462475,-2948.42,0.00033561,14]
[332650343,1721405462485,-500.0,0.00033561,14]
[332650344,1721405462495,-784.93,0.00033561,14]
[332650345,1721405462504,-500.0,0.00033561,14]
[332650346,1721405462513,-500.0,0.00033561,14]
[332650347,1721405462523,-640.01,0.00033561,14]
[332650348,1721405462532,-513.52,0.00033561,14]
[332650349,1721405462541,-500.0,0.00033561,14]
[332650350,1721405462550,-1028.44,0.00033561,14]
[332650351,1721405462559,-2252.48,0.00033561,14]
[332650352,1721405462569,-500.0,0.00033561,14]
[332650353,1721405462579,-3712.8,0.00033561,14]
[332650354,1721405462588,-2021.9,0.00033561,14]
[332650355,1721405462597,-1403.26,0.00033561,14]
[332650356,1721405462606,-500.0,0.00033561,14]
[332650357,1721405462616,-674.78,0.00033561,14]
[332650358,1721405462629,-937.06,0.00033561,14]
[332650359,1721405462638,-2643.01,0.00033561,14]
[332650360,1721405462647,-1627.03,0.00033561,14]
[332650361,1721405462657,-2462.55,0.00033561,14]
[332650362,1721405462666,-500.0,0.00033561,14]
[332650363,1721405462675,-500.0,0.00033561,14]
[332650364,1721405462685,-500.0,0.00033561,14]
[332650365,1721405462695,-3287.52,0.00033561,14]
[332650366,1721405462704,-500.0,0.00033561,14]
[332650367,1721405462714,-500.0,0.00033561,14]
[332650368,1721405462724,-1936.03,0.00033561,14]
[332650369,1721405462733,-500.0,0.00033561,14]
[332650370,1721405462742,-2333.6,0.00033561,14]
[332650371,1721405462751,-1393.59,0.00033561,14]
[332650372,1721405462761,-500.0,0.00033561,14]
[332650373,1721405462770,-1525.3,0.00033561,14]
[332650374,1721405462779,-500.0,0.00033561,14]
[332650375,1721405462788,-500.0,0.00033561,14]
[332650376,1721405462796,-510.03560667,0.00033561,14]
[332650377,1721405462805,-506.01751739,0.00033561,14]
[332650378,1721405462814,-500.0,0.00033561,14]
[332650379,1721405462823,-500.0,0.00033561,14]
[332650380,1721405462832,-500.0,0.00033561,14]
[332650381,1721405462842,-500.0,0.00033561,14]
[332650382,1721405462851,-573.94,0.00033561,14]
[332650383,1721405462860,-1371.28,0.00033561,14]
[332650384,1721405462871,-197.27146621,0.00033561,14]
[332650385,1721405462880,-3469.57,0.00033561,14]
[332650386,1721405462889,-631.52,0.00033561,14]
[332650387,1721405462899,-588.43,0.00033561,14]
[332650388,1721405462908,-500.0,0.00033561,14]
[332650389,1721405462917,-2176.17,0.00033561,14]
[332650390,1721405462927,-1955.31,0.00033561,14]
[332650391,1721405462936,-500.0,0.00033561,14]
[332650392,1721405462945,-500.0,0.00033561,14]
[332650393,1721405462955,-2427.02,0.00033561,14]
[332650394,1721405462964,-500.0,0.00033561,14]
[332650395,1721405462974,-500.0,0.00033561,14]
[332650396,1721405462983,-500.0,0.00033561,14]
[332650397,1721405462993,-1828.59,0.00033561,14]
[332650398,1721405463003,-5486.25,0.00033561,14]
[332650399,1721405463012,-1223.8,0.00033561,14]
[332650400,1721405463021,-500.0,0.00033561,14]
[332650401,1721405463030,-2146.48,0.00033561,14]
[332650402,1721405463039,-3526.03,0.00033561,14]
[332650403,1721405463049,-500.0,0.00033561,14]
[332650404,1721405463059,-4860.92,0.00033561,14]
[332650405,1721405463069,-764.16,0.00033561,14]
[332650406,1721405463078,-500.0,0.00033561,14]
[332650407,1721405463088,-500.0,0.00033561,14]
[332650408,1721405463098,-911.04,0.00033561,14]
[332650409,1721405463108,-500.0,0.00033561,14]
[332650410,1721405463117,-500.0,0.00033561,14]
[332650411,1721405463133,-1186.38,0.00033561,14]
[332650412,1721405463142,-803.43,0.00033561,14]
[332650413,1721405463152,-1434.17,0.00033561,14]
[332650414,1721405463161,-2377.08,0.00033561,14]
[332650415,1721405463170,-1324.17,0.00033561,14]
[332650416,1721405463180,-579.72,0.00033561,14]
[332650417,1721405463190,-1063.45,0.00033561,14]
[332650418,1721405463200,-997.28,0.00033561,14]
[332650419,1721405463209,-500.0,0.00033561,14]
[332650420,1721405463222,-1722.45,0.00033561,14]
[332650421,1721405463232,-500.0,0.00033561,14]
[332650422,1721405463243,-1747.58,0.00033561,14]
[332650423,1721405463257,-691.87,0.00033561,14]
[332650424,1721405463266,-764.08,0.00033561,14]
[332650425,1721405463276,-2778.31,0.00033561,14]
[332650426,1721405463286,-731.94,0.00033561,14]
[332650427,1721405463295,-746.56,0.00033561,14]
[332650428,1721405463305,-2370.14,0.00033561,14]
[332650429,1721405463316,-2176.52,0.00033561,14]
[332650430,1721405463329,-500.0,0.00033561,14]
[332650431,1721405463342,-946.47,0.00033561,14]
[332650432,1721405463352,-843.15,0.00033561,14]
[332650433,1721405463361,-2612.42,0.00033561,14]
[332650434,1721405463375,-3433.1,0.00033561,14]
[332650435,1721405463385,-3257.38,0.00033561,14]
[332650436,1721405463395,-4807.83,0.00033561,14]
[332650437,1721405463404,-500.0,0.00033561,14]
[332650438,1721405463414,-776.7,0.00033561,14]
[332650439,1721405463424,-500.0,0.00033561,14]
[332650440,1721405463433,-6084.24,0.00033561,14]
[332650441,1721405463443,-3104.0,0.00033561,14]
[332650442,1721405463453,-500.0,0.00033561,14]
[332650443,1721405463463,-929.51,0.00033561,14]
[332650444,1721405463472,-1119.11,0.00033561,14]
[332650445,1721405463482,-591.57,0.00033561,14]
[332650446,1721405463491,-773.81,0.00033561,14]
[332650447,1721405463500,-886.94,0.00033561,14]
[332650448,1721405463510,-500.0,0.00033561,14]
[332650449,1721405463520,-834.14,0.00033561,14]
[332650450,1721405463530,-520.14,0.00033561,14]
[332650451,1721405463539,-12975.5,0.00033561,14]
[332650452,1721405463549,-3729.59,0.00033561,14]
[332650453,1721405463559,-500.0,0.00033561,14]
[332650454,1721405463568,-564.41,0.00033561,14]
[332650455,1721405463578,-500.0,0.00033561,14]
[332650456,1721405463587,-2202.35,0.00033561,14]
[332650457,1721405463596,-500.0,0.00033561,14]
[332650458,1721405463605,-4444.81,0.00033561,14]
[332650459,1721405463614,-500.0,0.00033561,14]
[332650460,1721405463626,-517.39,0.00033561,14]
[332650461,1721405463635,-6544.05,0.00033561,14]
[332650462,1721405463644,-1479.28,0.00033561,14]
[332650463,1721405463653,-500.0,0.00033561,14]
[332650464,1721405463663,-500.0,0.00033561,14]
[332650465,1721405463672,-7598.05,0.00033561,14]
[332650466,1721405463682,-500.0,0.00033561,14]
[332650467,1721405463691,-1223.02,0.00033561,14]
[332650468,1721405463701,-2618.85,0.00033561,14]
[332650469,1721405463711,-500.0,0.00033561,14]
[332650470,1721405463720,-500.0,0.00033561,14]
[332650471,1721405463730,-500.0,0.00033561,14]
[332650472,1721405463740,-500.0,0.00033561,14]
[332650473,1721405463750,-5744.48,0.00033561,14]
[332650474,1721405463759,-1017.25,0.00033561,14]
[332650475,1721405463769,-597.01,0.00033561,14]
[332650476,1721405463779,-1155.3,0.00033561,14]
[332650477,1721405463788,-4429.22,0.00033561,14]
[332650478,1721405463797,-783.69,0.00033561,14]
[332650479,1721405463806,-590.27,0.00033561,14]
[332650480,1721405463816,-500.0,0.00033561,14]
[332650481,1721405463825,-3470.76,0.00033561,14]
[332650482,1721405463835,-500.0,0.00033561,14]
[332650483,1721405463844,-2242.37,0.00033561,14]
[332650484,1721405463853,-501.12,0.00033561,14]
[332650485,1721405463863,-500.0,0.00033561,14]
[332650486,1721405463875,-2671.8,0.00033561,14]
[332650487,1721405463885,-500.0,0.00033561,14]
[332650488,1721405463894,-1458.44,0.00033561,14]
[332650489,1721405463903,-850.9,0.00033561,14]
[332650490,1721405463913,-3379.93,0.00033561,14]
[332650491,1721405463927,-782.77,0.00033561,14]
[332650492,1721405463936,-2276.75,0.00033561,14]
[332650493,1721405463946,-983.6,0.00033561,14]
[332650494,1721405463956,-2517.04,0.00033561,14]